bitfinex/quotes_ETHUSD_20250525
["timestamp","ask_amount","ask_price","bid_price","bid_amount"]
[1748196120517,4.112,2510.5,2510.2,0.774]
[1748196120842,3.98288788,2510.8,2510.4,0.774]
[1748196121002,8.597,2510.9,2510.7,0.774]
[1748196121203,8.597,2510.9,2510.7,8.774]
[1748196121503,3.9823542,2511.1,2510.8,0.774]
[1748196121809,3.9826357,2510.9,2510.8,0.774]
[1748196122231,3.98248025,2511.0,2510.8,0.774]
[1748196122232,3.98253888,2511.0,2510.8,0.774]
[1748196122416,3.98255903,2511.0,2510.8,0.774]
[1748196125444,3.9826357,2510.9,2510.8,0.774]
[1748196125643,3.98295296,2510.7,2510.5,0.7786]
[1748196125846,3.98374631,2510.2,2510.1,4.029]
[1748196126047,3.98374631,2510.2,2510.1,0.05]
[1748196126266,3.9836668,2510.3,2510.1,8.8286]
[1748196126577,3.98374631,2510.2,2510.1,8.8286]
[1748196127539,3.98374631,2510.2,2510.1,8.05]
[1748196128449,3.98374631,2510.2,2510.1,0.05]
[1748196129774,3.98366634,2510.3,2510.1,0.05]
[1748196130363,3.98374631,2510.2,2510.1,0.05]
[1748196133772,3.98367535,2510.3,2510.1,0.05]
[1748196137604,3.98374631,2510.2,2510.1,0.05]
[1748196141655,3.98368831,2510.3,2510.1,0.05]
[1748196146795,4.117,2510.5,2510.1,0.05]
[1748196146997,3.98371885,2510.3,2510.1,0.05]
[1748196147498,3.98373839,2510.3,2510.1,0.05]
[1748196148410,3.98374631,2510.2,2510.1,0.05]
[1748196150364,3.98368748,2510.3,2510.1,0.05]
[1748196151507,3.98374631,2510.2,2510.1,0.05]
[1748196156290,3.98374631,2510.2,2510.1,0.8285]
[1748196156488,3.98374631,2510.2,2510.1,0.05]
[1748196161837,0.47664657,2511.2,2510.2,0.8142]
[1748196162009,3.9830289,2510.7,2510.2,15.96270251]
[1748196162210,3.98292181,2510.8,2510.3,0.8142]
[1748196162415,3.98297008,2510.7,2510.3,2.89527327]
[1748196162614,3.98286742,2510.8,2510.3,2.08107327]
[1748196162910,0.33230535,2511.1,2510.4,0.8142]
[1748196163116,3.98298629,2510.7,2510.4,0.8142]
[1748196163316,3.98314174,2510.6,2510.4,0.8142]
[1748196163527,3.98300039,2510.7,2510.5,0.28952733]
[1748196163728,3.98252796,2511.0,2510.7,0.8142]
[1748196164036,0.33230535,2511.1,2510.7,0.8142]
[1748196164037,3.98279432,2510.8,2510.7,0.8142]
[1748196164617,3.98272366,2510.9,2510.7,0.8142]
[1748196165618,3.98279432,2510.8,2510.7,0.8142]
[1748196169627,3.98269148,2510.9,2510.7,0.8142]
[1748196169944,3.98269148,2510.9,2510.7,2.12247273]
[1748196172590,3.98254822,2511.0,2510.7,2.12247273]
[1748196172788,3.98273517,2510.9,2510.7,0.8142]
[1748196174383,4.44930535,2511.1,2510.7,0.8142]
[1748196174585,4.44930535,2511.1,2510.9,8.0]
[1748196174762,4.44930535,2511.1,2510.9,12.7502]
[1748196175086,4.117,2511.1,2510.9,12.7502]
[1748196175381,4.117,2511.1,2510.9,14.4234904]
[1748196177089,3.98219209,2511.2,2510.9,14.4234904]
[1748196180604,12.704,2511.6,2510.9,18.40605028]
[1748196180769,3.98168425,2511.5,2510.9,18.40605028]
[1748196180970,3.98175355,2511.5,2511.2,0.7692]
[1748196181169,3.98184982,2511.4,2511.2,0.7692]
[1748196181369,3.98200135,2511.3,2511.2,0.7692]
[1748196182572,3.98193978,2511.4,2511.2,0.7692]
[1748196182773,3.98200135,2511.3,2511.2,0.7692]
[1748196183307,3.98220491,2511.2,2511.0,8.0]
[1748196183511,3.98220491,2511.2,2511.1,3.978]
[1748196184005,3.98208659,2511.3,2511.1,3.978]
[1748196184386,3.98215992,2511.2,2511.1,3.978]
[1748196184571,3.98209746,2511.3,2511.1,3.978]
[1748196187221,3.98191262,2511.4,2511.1,3.978]
[1748196187388,3.98178109,2511.5,2511.2,0.7692]
[1748196187583,3.98178176,2511.5,2511.2,8.7692]
[1748196190478,8.09064742,2511.6,2511.2,8.7692]
[1748196190682,3.98170019,2511.5,2511.2,8.7692]
[1748196191181,4.109,2511.6,2511.3,3.98188993]
[1748196191486,4.109,2511.6,2511.3,11.98197149]
[1748196191707,3.98143048,2511.7,2511.3,15.95997149]
[1748196192293,4.109,2511.9,2511.6,8.0]
[1748196192607,8.09006717,2511.9,2511.7,1.19815858]
[1748196192809,8.09006717,2511.9,2511.6,8.0]
[1748196195335,8.09017284,2511.9,2511.6,8.0]
[1748196195540,4.109,2511.9,2511.6,8.0]
[1748196195911,8.09005369,2511.9,2511.6,8.0]
[1748196197623,4.109,2511.9,2511.6,8.0]
[1748196197828,4.109,2511.9,2511.7,1.59596237]
[1748196198450,4.109,2511.9,2511.8,8.8329]
[1748196198734,4.109,2511.9,2511.8,12.8099]
[1748196200709,3.98074344,2512.1,2511.8,12.8099]
[1748196202232,3.98100152,2512.0,2511.8,12.8099]
[1748196202443,3.98100152,2512.0,2511.9,1.44058624]
[1748196203142,3.98081583,2512.1,2511.9,1.44058624]
[1748196203805,3.98065195,2512.2,2511.9,1.44058624]
[1748196205003,3.98074033,2512.1,2511.9,1.44058624]
[1748196205237,3.98066781,2512.2,2511.9,1.44058624]
[1748196205446,3.98076037,2512.1,2511.9,1.44058624]
[1748196210883,4.108,2512.4,2512.0,9.42504862]
[1748196211083,4.108,2512.4,2512.1,0.7747]
[1748196211284,3.98066121,2512.2,2512.0,13.40104862]
[1748196212200,4.108,2512.4,2512.0,13.40104862]
[1748196212401,8.08832714,2512.4,2512.0,13.40104862]
[1748196212562,4.108,2512.4,2512.1,13.54228627]
[1748196212910,4.108,2512.4,2512.3,8.0]
[1748196218805,8.08825792,2512.4,2512.3,8.0]
[1748196219117,3.98041635,2512.3,2512.2,4.7507]
[1748196219280,8.0883172,2512.4,2512.3,8.0]
[1748196220881,4.108,2512.4,2512.3,9.43123335]
[1748196223037,3.97971697,2512.8,2512.3,9.43123335]
[1748196223215,3.97988226,2512.7,2512.5,8.0]
[1748196223421,3.97985384,2512.7,2512.5,8.0]
[1748196223885,3.97985384,2512.7,2512.3,5.41164792]
[1748196224094,0.55,2512.2,2511.5,2.00333932]
[1748196224289,3.98149067,2511.7,2511.5,2.00333932]
[1748196225016,3.98152572,2511.6,2511.5,2.00333932]
[1748196229332,3.98152572,2511.6,2511.4,11.976]
[1748196229521,3.98152572,2511.6,2511.5,1.27324]
[1748196231443,3.98125958,2511.8,2511.5,1.27324]
[1748196231444,3.98144046,2511.7,2511.5,1.27324]
[1748196231807,3.98113518,2511.9,2511.5,9.27324]
[1748196232136,3.98122617,2511.8,2511.6,1.72310469]
[1748196233530,3.9813672,2511.7,2511.6,1.72310469]
[1748196234031,3.9813672,2511.7,2511.6,5.69910469]
[1748196234204,3.9813672,2511.7,2511.6,3.976]
[1748196235141,3.9813672,2511.7,2511.6,11.976]
[1748196240456,3.9813672,2511.7,2511.6,8.0]
[1748196240745,3.9813672,2511.7,2511.6,11.976]
[1748196247854,3.9813672,2511.7,2511.6,8.0]
[1748196248021,4.77762723,2511.7,2511.6,8.0]
[1748196249687,8.75462723,2511.7,2511.6,8.0]
[1748196249961,9.30462723,2511.7,2511.6,8.0]
[1748196250468,8.75462723,2511.7,2511.6,8.0]
[1748196251251,3.98123307,2511.8,2511.0,9.96269973]
[1748196251252,3.98120869,2511.8,2511.7,8.0]
[1748196251575,7.9580869,2511.9,2511.4,0.7594]
[1748196251576,3.98153497,2511.6,2511.4,8.7594]
[1748196254089,3.98168425,2511.5,2511.4,8.7594]
[1748196254386,3.98144249,2511.7,2511.4,8.7594]
[1748196254581,3.98153109,2511.6,2511.4,8.7594]
[1748196254785,3.98153109,2511.6,2511.4,10.03304]
[1748196256189,3.98144818,2511.7,2511.4,10.03304]
[1748196256357,3.98153187,2511.6,2511.4,10.03304]
[1748196256759,3.98145193,2511.7,2511.4,10.03304]
[1748196257033,3.98153558,2511.6,2511.4,10.03304]
[1748196257738,3.9814247,2511.7,2511.4,10.03304]
[1748196257953,3.98111321,2511.9,2511.4,8.7594]
[1748196258234,3.98142742,2511.7,2511.4,8.7594]
[1748196261887,3.98130101,2511.8,2511.4,8.7594]
[1748196262082,3.98137624,2511.7,2511.4,8.7594]
[1748196262333,3.98137624,2511.7,2511.4,10.82944553]
[1748196263350,4.221,2512.3,2511.7,0.7564]
[1748196263503,4.221,2512.3,2512.0,8.0]
[1748196263711,4.221,2512.3,2512.1,0.7564]
[1748196263949,8.20142722,2512.3,2512.1,0.7564]
[1748196264132,8.20142722,2512.3,2512.1,8.7564]
[1748196264452,8.20142722,2512.3,2512.1,8.0]
[1748196264453,3.98057479,2512.2,2512.1,8.0]
[1748196266917,8.2014924,2512.3,2512.1,8.0]
[1748196267643,4.221,2512.3,2512.2,1.1977]
[1748196267944,8.20141635,2512.3,2512.2,1.1977]
[1748196268335,8.20141635,2512.3,2512.1,8.0]
[1748196270050,4.221,2512.3,2512.1,8.0]
[1748196270357,8.20143609,2512.3,2512.1,8.0]
[1748196272074,3.98057479,2512.2,2512.1,8.0]
[1748196276549,8.20150315,2512.3,2512.1,8.0]
[1748196282440,3.98057479,2512.2,2512.1,8.0]
[1748196283344,8.20150174,2512.3,2512.1,8.0]
[1748196287035,3.98057479,2512.2,2512.1,8.0]
[1748196287239,4.221,2512.3,2512.1,8.0]
[1748196288547,8.20147813,2512.3,2512.1,8.0]
[1748196293147,3.98047813,2512.3,2512.1,8.0]
[1748196293947,3.98057479,2512.2,2511.9,8.7564]
[1748196294160,3.98089171,2512.0,2511.7,0.82]
[1748196294324,3.98089171,2512.0,2511.9,8.0]
[1748196294856,3.98065961,2512.2,2511.9,8.0]
[1748196294857,3.9806624,2512.2,2511.9,8.0]
[1748196295049,3.9806624,2512.2,2512.1,8.0]
[1748196295624,3.98043164,2512.3,2512.0,3.976]
[1748196295625,3.98080139,2512.1,2512.0,11.976]
[1748196297457,3.98080139,2512.1,2512.0,8.0]
[1748196297751,3.98080139,2512.1,2512.0,11.976]
[1748196299855,3.98080139,2512.1,2512.0,8.0]
[1748196300059,4.77694021,2512.1,2511.5,2.81363932]
[1748196300243,4.77694021,2512.1,2511.5,2.00333932]
[1748196300244,3.98152572,2511.6,2511.5,2.00333932]
[1748196301536,4.53152572,2511.6,2511.5,2.00333932]
[1748196303152,3.9826357,2510.9,2510.8,2.53396934]
[1748196303327,12.59559582,2510.9,2510.8,10.53396934]
[1748196303862,12.59559582,2510.9,2510.8,2.53396934]
[1748196306179,3.9831116,2510.6,2510.3,8.0]
[1748196306326,3.9831116,2510.6,2510.2,8.0]
[1748196306656,3.9831116,2510.6,2510.3,0.00239024]
[1748196306854,3.98330424,2510.5,2510.2,8.0]
[1748196307560,3.98319408,2510.6,2510.2,8.0]
[1748196307764,3.98319408,2510.6,2510.2,10.07754537]
[1748196312173,3.98319408,2510.6,2510.1,8.05]
[1748196312174,3.98344381,2510.4,2510.1,8.05]
[1748196312380,3.98344381,2510.4,2510.2,0.00239024]
[1748196312575,3.98358761,2510.3,2510.2,0.00239024]
[1748196314058,3.98170039,2511.5,2510.2,0.00239024]
[1748196314257,3.98294588,2510.8,2510.4,8.0]
[1748196314459,8.47030535,2511.4,2510.3,0.8103]
[1748196314460,3.98312231,2510.6,2510.3,0.8103]
[1748196314659,3.98335586,2510.5,2510.3,0.8103]
[1748196315178,3.98322112,2510.6,2510.3,0.8103]
[1748196315347,3.98322112,2510.6,2510.3,2.49251341]
[1748196320082,8.14308988,2510.7,2510.3,2.49251341]
[1748196321294,3.98327992,2510.5,2510.3,0.8103]
[1748196321798,3.98319859,2510.6,2510.3,0.8103]
[1748196324892,8.14301555,2510.7,2510.3,0.8103]
[1748196325884,8.14301555,2510.7,2510.4,8.0]
[1748196326064,4.16,2510.7,2510.4,8.0]
[1748196326450,4.16,2510.7,2510.4,3.98342681]
[1748196326880,3.9823816,2511.1,2510.6,4.7640116]
[1748196327152,3.98099331,2512.0,2511.0,11.98247376]
[1748196327153,4.71240839,2511.4,2511.0,11.98247376]
[1748196327347,8.47426501,2511.4,2510.9,4.76344332]
[1748196327888,3.98223893,2511.2,2510.9,0.7809]
[1748196328094,3.98235024,2511.1,2510.9,0.7809]
[1748196330368,3.9824771,2511.0,2510.8,8.0]
[1748196330676,3.98239245,2511.1,2510.8,8.0]
[1748196332095,3.98225183,2511.2,2510.8,8.0]
[1748196332305,3.98205791,2511.3,2510.8,8.0]
[1748196332605,3.98232672,2511.1,2510.8,8.0]
[1748196334702,3.98225406,2511.2,2510.8,8.0]
[1748196335297,3.98232652,2511.1,2510.8,8.0]
[1748196336103,3.98223137,2511.2,2510.8,8.0]
[1748196336703,3.98234643,2511.1,2510.8,8.0]
[1748196339009,8.47421156,2511.4,2511.0,8.8195]
[1748196339221,4.31421156,2511.4,2511.0,0.8195]
[1748196339391,3.9815786,2511.6,2511.3,8.0]
[1748196339710,4.156,2511.4,2511.2,8.0]
[1748196339913,4.156,2511.4,2511.2,3.98207732]
[1748196340208,4.156,2511.4,2511.3,8.0]
[1748196340372,4.156,2511.4,2511.1,8.0]
[1748196340566,4.156,2511.4,2511.1,11.98225719]
[1748196341110,3.98154235,2511.6,2511.1,8.0]
[1748196341406,3.98168797,2511.5,2511.1,8.0]
[1748196342072,3.98168797,2511.5,2511.1,11.98230416]
[1748196343208,3.98168797,2511.5,2511.1,8.0]
[1748196343410,8.13759138,2511.6,2511.1,11.98230843]
[1748196343973,8.13740886,2511.7,2511.2,4.80152234]
[1748196344175,3.98152864,2511.6,2511.2,4.80152234]
[1748196344376,3.98152864,2511.6,2511.2,0.8195]
[1748196345709,3.9816895,2511.5,2511.2,0.8195]
[1748196346120,3.98184612,2511.4,2511.2,0.8195]
[1748196346299,3.98200135,2511.3,2511.2,0.8195]
[1748196346503,3.98200135,2511.3,2511.1,8.0]
[1748196346709,3.98215992,2511.2,2511.1,8.0]
[1748196346907,3.98279432,2510.8,2510.7,8.8195]
[1748196347224,3.98319081,2510.6,2510.3,0.8195]
[1748196347387,3.98318387,2510.6,2510.3,4.7975]
[1748196347596,3.98318387,2510.6,2510.4,8.0]
[1748196348889,3.98327026,2510.5,2510.4,8.0]
[1748196349079,3.98264724,2510.9,2510.1,4.8073]
[1748196349080,3.98356388,2510.4,2510.1,4.8073]
[1748196349384,3.98358761,2510.3,2510.2,0.00239024]
[1748196351037,12.11758761,2510.3,2510.2,0.00239024]
[1748196351210,3.98374631,2510.2,2510.1,0.05]
[1748196353453,4.156,2510.2,2510.1,0.05]
[1748196353752,8.13974631,2510.2,2510.1,0.05]
[1748196355747,0.47871419,2510.7,2510.1,0.05]
[1748196355954,3.98349043,2510.4,2510.1,0.05]
[1748196356148,3.98360289,2510.3,2510.1,0.05]
[1748196357552,3.98350316,2510.4,2510.1,0.05]
[1748196357854,3.98374631,2510.2,2510.1,0.05]
[1748196358232,3.98366666,2510.3,2510.1,0.05]
[1748196358955,3.98354251,2510.4,2510.1,0.05]
[1748196359126,3.98374631,2510.2,2510.1,0.05]
[1748196364724,4.77538475,2510.4,2510.1,0.05]
[1748196364948,8.75883486,2510.4,2510.1,0.05]
[1748196365959,3.9836335,2510.3,2510.1,0.05]
[1748196367040,8.1416335,2510.3,2510.1,0.05]
[1748196367863,8.1416335,2510.3,2510.1,0.8304]
[1748196367864,4.158,2510.3,2510.1,0.8304]
[1748196368458,4.159,2510.8,2510.4,3.9833348]
[1748196368628,4.159,2510.8,2510.3,8.0]
[1748196368976,8.14182306,2510.8,2510.3,11.98358761]
[1748196369258,8.14182814,2510.8,2510.4,0.7804]
[1748196369763,4.159,2510.8,2510.4,4.76382395]
[1748196370064,4.159,2510.8,2510.4,6.83647245]
[1748196370358,4.159,2510.8,2510.4,6.83638792]
[1748196370965,8.14181891,2510.8,2510.4,2.8530485]
[1748196371258,8.14190817,2510.8,2510.4,2.8530485]
[1748196371967,4.159,2510.8,2510.4,2.8530485]
[1748196372161,3.98318319,2510.6,2510.4,0.7804]
[1748196372528,3.98303047,2510.7,2510.4,0.7804]
[1748196373773,4.159,2510.8,2510.2,0.7773]
[1748196373942,3.98337722,2510.5,2510.2,0.7773]
[1748196374141,3.98337722,2510.5,2510.2,2.18607449]
[1748196375668,3.98319256,2510.6,2510.2,10.18607449]
[1748196375873,3.98319256,2510.6,2510.2,14.16980225]
[1748196378580,4.159,2510.8,2510.4,8.0]
[1748196378776,3.98295601,2510.7,2510.4,10.21696455]
[1748196379070,3.98295601,2510.7,2510.4,2.21696455]
[1748196379594,3.98295296,2510.7,2510.4,2.21696455]
[1748196380577,3.9813672,2511.7,2510.8,8.0]
[1748196380736,3.98168425,2511.5,2511.0,8.0]
[1748196380957,3.98208959,2511.3,2510.8,11.98272927]
[1748196381463,12.45083716,2511.6,2511.1,0.7564]
[1748196381663,12.4509514,2511.6,2511.2,8.0]
[1748196381899,3.98175884,2511.5,2511.1,0.7564]
[1748196382119,3.98175884,2511.5,2511.2,8.0]
[1748196382263,3.98175884,2511.5,2511.1,8.7564]
[1748196384195,4.49030535,2511.6,2511.1,14.41084847]
[1748196384495,4.49030535,2511.6,2511.2,3.98207435]
[1748196384496,8.13953446,2511.6,2511.2,3.98207435]
[1748196384995,8.13961605,2511.6,2511.1,14.41077941]
[1748196385155,4.158,2511.6,2511.1,14.41077941]
[1748196385361,3.98168496,2511.5,2511.1,10.42853662]
[1748196385599,8.13958338,2511.6,2511.1,14.41077542]
[1748196387297,8.13958338,2511.6,2511.2,3.98215849]
[1748196388108,8.13958338,2511.6,2511.1,14.41077103]
[1748196388429,12.11753621,2511.6,2511.1,8.7564]
[1748196388599,3.98239635,2511.1,2510.7,0.8111]
[1748196388802,3.98241021,2511.1,2510.7,8.8111]
[1748196389128,3.98232438,2511.1,2510.7,12.79398572]
[1748196389287,3.98232438,2511.1,2510.7,8.8111]
[1748196389626,3.98232438,2511.1,2510.7,12.79404552]
[1748196389789,3.98232438,2511.1,2510.7,13.42995231]
[1748196390326,3.98232438,2511.1,2510.7,13.42993957]
[1748196392519,3.98232438,2511.1,2510.7,9.44700679]
[1748196395660,3.98247942,2511.0,2510.7,9.44700679]
[1748196395824,3.98247791,2511.0,2510.7,9.44700679]
[1748196396161,3.98264716,2510.9,2510.7,1.44700679]
[1748196396452,3.98264716,2510.9,2510.7,9.44700679]
[1748196397133,3.98261093,2511.0,2510.7,9.44700679]
[1748196399965,3.98239085,2511.1,2510.7,13.42992933]
[1748196400130,3.98239085,2511.1,2510.7,9.44700679]
[1748196400963,3.98248445,2511.0,2510.7,9.44700679]
[1748196402742,3.98241483,2511.1,2510.7,9.44700679]
[1748196403980,3.98249017,2511.0,2510.7,9.44700679]
[1748196405686,3.98240035,2511.1,2510.7,9.44700679]
[1748196406057,3.98247755,2511.0,2510.7,9.44700679]
[1748196410438,3.98240153,2511.1,2510.7,13.42995944]
[1748196410579,3.98223328,2511.2,2510.7,9.44700679]
[1748196410781,3.98235253,2511.1,2510.7,9.44700679]
[1748196412023,3.9825253,2511.0,2510.7,9.44700679]
[1748196412222,3.9824116,2511.1,2510.7,9.44700679]
[1748196413324,3.98248147,2511.0,2510.7,9.44700679]
[1748196414817,3.98242663,2511.1,2510.7,9.44700679]
[1748196416520,4.145,2511.3,2510.9,8.0]
[1748196416829,8.12703235,2511.3,2511.0,8.7907]
[1748196417011,8.12703235,2511.3,2511.0,0.7907]
[1748196418640,3.98216843,2511.2,2511.0,0.7907]
[1748196419104,3.9823185,2511.1,2511.0,0.7907]
[1748196419547,4.145,2511.3,2510.8,0.7907]
[1748196419707,3.98262684,2511.0,2510.8,8.7907]
[1748196421742,3.98240773,2511.1,2510.8,8.7907]
[1748196422160,8.12707279,2511.3,2510.8,8.7907]
[1748196422161,3.98215992,2511.2,2510.8,8.7907]
[1748196422366,3.98231998,2511.1,2510.8,8.7907]
[1748196424653,3.98288167,2510.8,2510.7,8.0]
[1748196425748,3.98272606,2510.9,2510.7,8.0]
[1748196425982,3.98256453,2511.0,2510.7,8.0]
[1748196426161,3.98256453,2511.0,2510.6,8.7633]
[1748196428058,3.98263878,2510.9,2510.6,8.7633]
[1748196430362,3.978,2511.2,2510.2,0.7578]
[1748196430565,3.98333575,2510.5,2510.1,4.028]
[1748196430764,3.98340143,2510.5,2510.1,4.028]
[1748196431061,3.98343073,2510.4,2510.2,8.0]
[1748196431264,3.98318939,2510.6,2510.1,8.05]
[1748196431559,3.98343591,2510.4,2510.1,8.64757316]
[1748196431760,3.98341601,2510.5,2510.1,8.05]
[1748196431963,3.978,2510.8,2510.1,8.05]
[1748196431964,4.124,2510.6,2510.1,8.05]
[1748196432165,3.98366195,2510.3,2510.1,8.05]
[1748196432384,3.98352072,2510.4,2510.1,8.05]
[1748196432587,3.98336478,2510.5,2510.1,8.05]
[1748196433503,3.9834296,2510.4,2510.1,0.05]
[1748196433988,8.10831271,2510.5,2510.2,0.7505]
[1748196435903,3.98290495,2510.8,2510.4,8.0]
[1748196436084,4.125,2511.1,2510.3,8.7927]
[1748196436391,3.98259549,2511.0,2510.5,8.0]
[1748196436570,3.98259549,2511.0,2510.5,11.98324506]
[1748196436765,3.98259549,2511.0,2510.6,0.7927]
[1748196436979,3.98238141,2511.1,2510.7,8.0]
[1748196437191,4.125,2511.3,2510.8,0.7927]
[1748196437426,8.10698463,2511.4,2510.9,8.0]
[1748196437635,8.10698463,2511.4,2510.8,12.77541546]
[1748196437636,3.98206562,2511.3,2510.8,12.77541546]
[1748196437814,3.98206562,2511.3,2510.9,2.07363151]
[1748196438017,4.125,2511.4,2510.8,8.7927]
[1748196438295,3.98239872,2511.1,2510.8,8.7927]
[1748196438728,3.98223851,2511.2,2510.8,8.7927]
[1748196438903,3.9823535,2511.1,2510.8,8.7927]
[1748196439632,3.9821633,2511.2,2510.8,8.7927]
[1748196439931,3.9821633,2511.2,2510.8,10.86635615]
[1748196440724,3.98248154,2511.0,2510.8,10.86635615]
[1748196440903,3.98248154,2511.0,2510.8,8.7927]
[1748196441098,3.98243,2511.1,2510.8,8.7927]
[1748196442707,3.98239768,2511.1,2510.8,8.7927]
[1748196443321,3.9823185,2511.1,2510.8,8.7927]
[1748196444132,8.35860807,2511.1,2510.5,0.7868]
[1748196444296,3.9831116,2510.6,2510.3,4.7648]
[1748196444497,3.98288744,2510.8,2510.3,4.7648]
[1748196444498,3.9830476,2510.7,2510.4,8.0]
[1748196444697,4.37623185,2511.1,2510.3,0.7868]
[1748196444900,4.37623185,2511.1,2510.1,0.05]
[1748196444901,0.55,2511.0,2510.1,0.8368]
[1748196445129,3.98357868,2510.4,2510.1,0.8368]
[1748196445431,3.98357868,2510.4,2510.1,8.8368]
[1748196445636,3.98360806,2510.3,2510.1,8.8368]
[1748196445840,3.98351309,2510.4,2510.1,8.8368]
[1748196448238,3.98338824,2510.5,2510.1,8.8368]
[1748196448439,8.10718361,2510.6,2510.1,14.75396796]
[1748196449006,8.10718361,2510.6,2510.1,10.77008279]
[1748196450946,8.10718361,2510.6,2510.1,14.75397641]
[1748196452138,8.10715951,2510.6,2510.1,14.75395157]
[1748196453209,4.124,2510.6,2510.1,14.74808279]
[1748196453407,8.10720847,2510.6,2510.1,14.74808279]
[1748196454045,4.129,2511.0,2510.3,8.0]
[1748196454247,8.11154901,2511.0,2510.6,8.7962]
[1748196454450,3.98266294,2510.9,2510.6,0.7962]
[1748196454648,3.98277212,2510.9,2510.6,0.7962]
[1748196455012,8.11152267,2511.0,2510.6,0.7962]
[1748196455212,8.11154673,2511.0,2510.6,0.7962]
[1748196455552,3.98280363,2510.8,2510.6,0.7962]
[1748196455750,3.98272237,2510.9,2510.6,0.7962]
[1748196456745,3.9826357,2510.9,2510.6,0.7962]
[1748196457832,3.98279846,2510.8,2510.6,0.7962]
[1748196458034,3.98272788,2510.9,2510.6,0.7962]
[1748196458560,4.129,2511.0,2510.6,1.31501074]
[1748196458872,4.129,2511.0,2510.6,5.29805683]
[1748196459533,3.98241961,2511.1,2510.6,5.29805683]
[1748196459732,4.45724839,2512.2,2510.7,0.8208]
[1748196459948,3.98220679,2511.2,2510.8,8.0]
[1748196460151,3.98233172,2511.1,2510.7,8.8208]
[1748196461370,8.11108987,2511.3,2510.7,8.8208]
[1748196461671,3.98226198,2511.2,2510.7,12.80369218]
[1748196462976,3.98232126,2511.1,2510.7,12.80369218]
[1748196463185,3.98232126,2511.1,2510.8,1.73005029]
[1748196464583,3.98225396,2511.2,2510.8,1.73005029]
[1748196464882,3.98231893,2511.1,2510.8,1.73005029]
[1748196465683,4.129,2511.3,2510.9,0.8136]
[1748196465857,8.11100577,2511.3,2510.9,0.8136]
[1748196466056,8.11100699,2511.3,2511.0,0.65264123]
[1748196466751,3.98194592,2511.4,2511.0,0.65264123]
[1748196466956,8.11101569,2511.3,2511.0,0.65264123]
[1748196467392,3.98174691,2511.5,2511.0,0.65264123]
[1748196467393,4.128,2511.5,2511.2,8.0]
[1748196467557,8.10969115,2511.5,2511.2,0.8136]
[1748196467763,3.98184643,2511.4,2511.2,0.8136]
[1748196467993,3.98184643,2511.4,2511.2,2.15846378]
[1748196468201,3.98200135,2511.3,2511.2,0.8136]
[1748196469094,3.9818474,2511.4,2511.2,0.8136]
[1748196470198,3.98200135,2511.3,2511.2,0.8136]
[1748196471112,3.98193121,2511.4,2511.2,0.8136]
[1748196473303,3.98200135,2511.3,2511.2,0.8136]
[1748196473805,3.98193336,2511.4,2511.2,0.8136]
[1748196474205,4.128,2511.5,2511.2,0.8136]
[1748196474410,3.98200135,2511.3,2511.2,0.8136]
[1748196477522,4.128,2511.5,2511.2,1.76022412]
[1748196477883,4.128,2511.5,2511.2,9.76022412]
[1748196478383,4.128,2511.5,2511.2,1.76022412]
[1748196478579,3.98190157,2511.4,2511.2,1.76022412]
[1748196480407,4.128,2511.5,2511.0,0.65264123]
[1748196480610,3.98184279,2511.4,2510.8,3.977]
[1748196480922,3.9825091,2511.0,2510.9,8.0]
[1748196481344,3.98291467,2510.8,2510.5,0.7791]
[1748196482332,3.98302574,2510.7,2510.5,0.7791]
[1748196482599,3.98303662,2510.7,2510.3,4.7561]
[1748196482893,3.98303662,2510.7,2510.4,8.87397649]
[1748196483279,3.98287091,2510.8,2510.4,8.87397649]
[1748196483677,3.98295596,2510.7,2510.4,8.87397649]
[1748196485182,3.98287991,2510.8,2510.4,8.87397649]
[1748196485362,3.98306659,2510.7,2510.4,8.87397649]
[1748196485680,3.9831161,2510.6,2510.3,4.7571]
[1748196486082,3.9831161,2510.6,2510.3,0.7791]
[1748196486518,3.98250046,2511.0,2510.3,0.7791]
[1748196486663,8.10163964,2510.9,2510.3,4.76265359]
[1748196486861,3.98258035,2511.0,2510.6,8.0]
[1748196487165,3.98284836,2510.8,2510.6,8.0]
[1748196487360,8.10120039,2511.2,2510.6,8.0]
[1748196487582,3.98301528,2510.7,2510.5,0.7994]
[1748196487900,3.98301528,2510.7,2510.5,8.7994]
[1748196488900,3.9828832,2510.8,2510.5,8.7994]
[1748196490210,3.98304247,2510.7,2510.5,8.7994]
[1748196491875,3.9831116,2510.6,2510.5,8.7994]
[1748196492560,3.98303869,2510.7,2510.5,8.7994]
[1748196493899,3.98286696,2510.8,2510.5,8.7994]
[1748196494109,3.98273169,2510.9,2510.5,8.7994]
[1748196494403,3.98280139,2510.8,2510.5,9.35797586]
[1748196496307,3.98297421,2510.7,2510.5,9.35797586]
[1748196497708,3.98290861,2510.8,2510.5,9.35797586]
[1748196501346,3.978,2511.1,2510.5,9.35797586]
[1748196501553,3.978,2511.1,2510.5,8.7994]
[1748196501851,3.98288521,2510.8,2510.5,8.7994]
[1748196504152,3.98300748,2510.7,2510.5,8.7994]
[1748196504925,3.98287306,2510.8,2510.5,8.7994]
[1748196507856,4.119,2511.2,2510.5,8.7994]
[1748196508012,4.12,2511.0,2510.8,8.0]
[1748196508204,4.12,2511.0,2510.8,4.75388454]
[1748196508424,4.12,2511.0,2510.8,8.7711]
[1748196511513,4.12,2511.0,2510.8,12.75383204]
[1748196512158,4.12,2511.0,2510.8,8.7711]
[1748196512362,4.12,2511.0,2510.8,10.84260119]
[1748196515272,3.0,2511.2,2511.1,11.9823185]
[1748196515467,3.0,2511.2,2511.1,16.7165185]
[1748196515964,1.37880319,2511.2,2511.1,16.7165185]
[1748196516310,4.113,2511.6,2511.3,3.98196444]
[1748196516516,4.113,2511.6,2511.5,8.8203]
[1748196516916,4.113,2511.6,2511.5,12.80198425]
[1748196517148,0.33230535,2512.1,2511.6,0.8203]
[1748196517335,4.31304967,2512.1,2511.9,0.8203]